[Event "Late-Titled-Tuesday-Blitz-March-12-2024"]
[Site "Chess.com"]
[Date "2024.03.12"]
[Round "5"]
[White "Anton_Demchenko"]
[Black "Jagerrmeisterr"]
[Result "1-0"]
[WhiteElo "2945"]
[BlackElo "2718"]
[TimeControl "180+1"]
[EndTime "14:54:31 PDT"]
[Termination "Anton_Demchenko won on time"]

1. e4 {[%clk 0:03:00.9]} 1... c6 {[%clk 0:03:00.1]} 2. d3 {[%clk 0:03:01.1]}
2... d5 {[%clk 0:02:56.7]} 3. Nf3 {[%clk 0:03:01.2]} 3... Bg4 {[%clk 0:02:56.7]}
4. h3 {[%clk 0:03:00.7]} 4... Bxf3 {[%clk 0:02:56.9]} 5. Qxf3 {[%clk 0:03:00.7]}
5... e6 {[%clk 0:02:57.4]} 6. g3 {[%clk 0:02:59.5]} 6... Nd7 {[%clk 0:02:57]} 7.
Bg2 {[%clk 0:02:59.7]} 7... g6 {[%clk 0:02:57.4]} 8. Qe2 {[%clk 0:03:00.3]} 8...
Bg7 {[%clk 0:02:57.8]} 9. O-O {[%clk 0:02:59.9]} 9... Ne7 {[%clk 0:02:57.7]} 10.
f4 {[%clk 0:02:59.2]} 10... O-O {[%clk 0:02:57.1]} 11. Kh1 {[%clk 0:02:56]}
11... Qc7 {[%clk 0:02:56.4]} 12. Nd2 {[%clk 0:02:55.9]} 12... Rae8 {[%clk
0:02:48.9]} 13. Nf3 {[%clk 0:02:56.2]} 13... c5 {[%clk 0:02:43]} 14. c3 {[%clk
0:02:50.4]} 14... b5 {[%clk 0:02:26]} 15. Bd2 {[%clk 0:02:44]} 15... Nc6 {[%clk
0:02:18.8]} 16. e5 {[%clk 0:02:40.6]} 16... f5 {[%clk 0:02:03.4]} 17. d4 {[%clk
0:02:38.7]} 17... Qb6 {[%clk 0:01:59.9]} 18. Be3 {[%clk 0:02:38.4]} 18... c4
{[%clk 0:01:59.1]} 19. g4 {[%clk 0:02:32.5]} 19... Ne7 {[%clk 0:01:56.4]} 20.
Rg1 {[%clk 0:02:19.6]} 20... b4 {[%clk 0:01:53.3]} 21. Qd2 {[%clk 0:02:05.4]}
21... a5 {[%clk 0:01:53]} 22. Bf2 {[%clk 0:01:59.3]} 22... Nb8 {[%clk
0:01:45.4]} 23. Bh4 {[%clk 0:01:56]} 23... Nbc6 {[%clk 0:01:45.6]} 24. a4 {[%clk
0:01:49.4]} 24... Kh8 {[%clk 0:01:32.7]} 25. Raf1 {[%clk 0:01:30.7]} 25... Ng8
{[%clk 0:01:28.8]} 26. Ng5 {[%clk 0:01:19.9]} 26... Nh6 {[%clk 0:01:26.8]} 27.
Bf3 {[%clk 0:01:18.4]} 27... Qa7 {[%clk 0:01:19.1]} 28. Rf2 {[%clk 0:01:14.9]}
28... Qd7 {[%clk 0:01:17.5]} 29. Rfg2 {[%clk 0:01:14.1]} 29... bxc3 {[%clk
0:01:09.6]} 30. bxc3 {[%clk 0:01:14]} 30... Rb8 {[%clk 0:01:04.5]} 31. Bd1
{[%clk 0:01:10.4]} 31... Ne7 {[%clk 0:01:02.6]} 32. Nf3 {[%clk 0:00:58.9]} 32...
Rb1 {[%clk 0:00:57.9]} 33. Bf6 {[%clk 0:00:58.4]} 33... Rfb8 {[%clk 0:00:48.7]}
34. Qf2 {[%clk 0:00:49.1]} 34... Neg8 {[%clk 0:00:32.3]} 35. g5 {[%clk
0:00:47.5]} 35... Nf7 {[%clk 0:00:30.2]} 36. h4 {[%clk 0:00:48.2]} 36... R8b2
{[%clk 0:00:14]} 37. Qd2 {[%clk 0:00:48.5]} 37... Rxd2 {[%clk 0:00:14]} 38. Rxd2
{[%clk 0:00:48.4]} 38... Bxf6 {[%clk 0:00:14.7]} 39. exf6 {[%clk 0:00:47.7]}
39... Qd6 {[%clk 0:00:14.9]} 40. Ne5 {[%clk 0:00:46.4]} 40... Nxe5 {[%clk
0:00:15.1]} 41. fxe5 {[%clk 0:00:40.9]} 41... Qc7 {[%clk 0:00:14.3]} 42. h5
{[%clk 0:00:34.7]} 42... gxh5 {[%clk 0:00:12.2]} 43. Bxh5 {[%clk 0:00:35.3]}
43... Rxg1+ {[%clk 0:00:11.8]} 44. Kxg1 {[%clk 0:00:36.2]} 44... Ne7 {[%clk
0:00:12.1]} 45. Rh2 {[%clk 0:00:35.2]} 45... Kg8 {[%clk 0:00:11.9]} 46. Be8
{[%clk 0:00:25.7]} 46... Ng6 {[%clk 0:00:09.8]} 47. Rh6 {[%clk 0:00:26]} 47...
Kf8 {[%clk 0:00:07.4]} 48. Bxg6 {[%clk 0:00:24.9]} 48... hxg6 {[%clk 0:00:08.3]}
49. Rh8+ {[%clk 0:00:24.6]} 1-0

[Event "Late-Titled-Tuesday-Blitz-March-12-2024"]
[Site "Chess.com"]
[Date "2024.03.12"]
[Round "5"]
[White "Koalaskakistis"]
[Black "GaiozNigalidze"]
[Result "0-1"]
[WhiteElo "2535"]
[BlackElo "2712"]
[TimeControl "180+1"]
[EndTime "14:54:32 PDT"]
[Termination "GaiozNigalidze won on time"]

1. e4 {[%clk 0:02:56.4]} 1... c5 {[%clk 0:02:59.5]} 2. Nf3 {[%clk 0:02:56.1]}
2... d6 {[%clk 0:03:00.1]} 3. d4 {[%clk 0:02:56.5]} 3... cxd4 {[%clk 0:03:01]}
4. Nxd4 {[%clk 0:02:57.4]} 4... Nf6 {[%clk 0:03:00.8]} 5. Nc3 {[%clk 0:02:57.6]}
5... a6 {[%clk 0:03:01.3]} 6. f4 {[%clk 0:02:44.2]} 6... Nbd7 {[%clk 0:02:58.4]}
7. Bc4 {[%clk 0:02:36.5]} 7... e6 {[%clk 0:02:37.8]} 8. O-O {[%clk 0:02:34.7]}
8... b5 {[%clk 0:02:32.4]} 9. Bb3 {[%clk 0:02:34.6]} 9... Bb7 {[%clk 0:02:30.3]}
10. Qe2 {[%clk 0:02:29.6]} 10... Qc7 {[%clk 0:02:23.6]} 11. f5 {[%clk
0:02:16.7]} 11... e5 {[%clk 0:02:22.7]} 12. Nf3 {[%clk 0:02:15.5]} 12... Be7
{[%clk 0:02:19.7]} 13. Bg5 {[%clk 0:02:12.9]} 13... Rc8 {[%clk 0:02:15.5]} 14.
Rad1 {[%clk 0:02:12.2]} 14... b4 {[%clk 0:01:37.8]} 15. Bxf6 {[%clk 0:01:19.6]}
15... Nxf6 {[%clk 0:01:31.9]} 16. Nd5 {[%clk 0:01:10.8]} 16... Bxd5 {[%clk
0:01:26.2]} 17. Bxd5 {[%clk 0:01:10.2]} 17... Nxd5 {[%clk 0:01:10.2]} 18. Rxd5
{[%clk 0:01:11.1]} 18... Qxc2 {[%clk 0:01:04.2]} 19. Qxa6 {[%clk 0:01:10.9]}
19... O-O {[%clk 0:01:03.7]} 20. Rd2 {[%clk 0:01:00.3]} 20... Qxe4 {[%clk
0:00:59.4]} 21. Re2 {[%clk 0:00:30.9]} 21... Qc4 {[%clk 0:00:49.2]} 22. Qxc4
{[%clk 0:00:25.4]} 22... Rxc4 {[%clk 0:00:50.1]} 23. Rd1 {[%clk 0:00:25.5]}
23... Ra8 {[%clk 0:00:46]} 24. b3 {[%clk 0:00:25.4]} 24... Rc5 {[%clk
0:00:44.3]} 25. g4 {[%clk 0:00:18.8]} 25... g6 {[%clk 0:00:43.3]} 26. Kf2 {[%clk
0:00:12.8]} 26... Kg7 {[%clk 0:00:38.2]} 27. Nd2 {[%clk 0:00:07.6]} 27... Rxa2
{[%clk 0:00:32.9]} 28. Ne4 {[%clk 0:00:07.3]} 28... Rcc2 {[%clk 0:00:28.9]} 29.
Rxc2 {[%clk 0:00:04]} 29... Rxc2+ {[%clk 0:00:29.8]} 30. Ke3 {[%clk 0:00:04.5]}
30... Rxh2 {[%clk 0:00:27.2]} 31. Rf1 {[%clk 0:00:04.6]} 31... Rh3+ {[%clk
0:00:22.7]} 32. Ke2 {[%clk 0:00:04.9]} 32... gxf5 {[%clk 0:00:13.5]} 33. gxf5
{[%clk 0:00:05.8]} 33... f6 {[%clk 0:00:12.8]} 34. Rc1 {[%clk 0:00:03.8]} 34...
d5 {[%clk 0:00:11.5]} 35. Nf2 {[%clk 0:00:01.8]} 35... Rxb3 {[%clk 0:00:10.6]}
36. Rc7 {[%clk 0:00:02.7]} 36... Kf7 {[%clk 0:00:10.1]} 37. Ng4 {[%clk
0:00:03.1]} 37... Rc3 {[%clk 0:00:09.9]} 38. Rb7 {[%clk 0:00:02.8]} 38... Rc2+
{[%clk 0:00:09.1]} 39. Kd3 {[%clk 0:00:02.7]} 39... Rc3+ {[%clk 0:00:09.3]} 40.
Kd2 {[%clk 0:00:02.9]} 40... Rh3 {[%clk 0:00:09.3]} 41. Ke2 {[%clk 0:00:02]}
41... Rh4 {[%clk 0:00:09.2]} 42. Kf3 {[%clk 0:00:02.1]} 42... b3 {[%clk
0:00:08.5]} 43. Rxb3 {[%clk 0:00:01.4]} 43... Rh3+ {[%clk 0:00:08.6]} 0-1

[Event "Late-Titled-Tuesday-Blitz-March-12-2024"]
[Site "Chess.com"]
[Date "2024.03.12"]
[Round "5"]
[White "Vadim_Galchenko"]
[Black "Szparu"]
[Result "1-0"]
[WhiteElo "2604"]
[BlackElo "2797"]
[TimeControl "180+1"]
[EndTime "14:54:33 PDT"]
[Termination "Vadim_Galchenko won on time"]

1. e4 {[%clk 0:03:00.9]} 1... c5 {[%clk 0:02:59.9]} 2. a3 {[%clk 0:03:01]} 2...
d6 {[%clk 0:02:53]} 3. b4 {[%clk 0:03:00.9]} 3... Nf6 {[%clk 0:02:52.3]} 4. Nc3
{[%clk 0:03:00.9]} 4... Nc6 {[%clk 0:02:49.5]} 5. Rb1 {[%clk 0:02:59.2]} 5... g6
{[%clk 0:02:47.9]} 6. g3 {[%clk 0:02:58.8]} 6... Bg7 {[%clk 0:02:48]} 7. Bg2
{[%clk 0:02:57.6]} 7... O-O {[%clk 0:02:48.2]} 8. Nge2 {[%clk 0:02:57.2]} 8...
Qc7 {[%clk 0:02:38.8]} 9. O-O {[%clk 0:02:55.8]} 9... Rb8 {[%clk 0:02:21.7]} 10.
d3 {[%clk 0:02:53.7]} 10... b6 {[%clk 0:02:21.7]} 11. h3 {[%clk 0:02:52.6]}
11... Bb7 {[%clk 0:02:21.6]} 12. Be3 {[%clk 0:02:52.1]} 12... e6 {[%clk
0:02:09.5]} 13. Qd2 {[%clk 0:02:42.8]} 13... Qd7 {[%clk 0:02:02]} 14. Kh2 {[%clk
0:02:36.3]} 14... d5 {[%clk 0:02:00]} 15. Bh6 {[%clk 0:02:32.5]} 15... dxe4
{[%clk 0:01:50.2]} 16. Bxg7 {[%clk 0:02:21.6]} 16... Kxg7 {[%clk 0:01:51.1]} 17.
Nxe4 {[%clk 0:02:21]} 17... Nxe4 {[%clk 0:01:46]} 18. Bxe4 {[%clk 0:02:21.9]}
18... cxb4 {[%clk 0:01:44]} 19. axb4 {[%clk 0:02:21.4]} 19... Nd4 {[%clk
0:01:36.5]} 20. Qc3 {[%clk 0:02:10.3]} 20... e5 {[%clk 0:01:35]} 21. Bxb7 {[%clk
0:01:59.7]} 21... Rxb7 {[%clk 0:01:30.7]} 22. Nxd4 {[%clk 0:01:50.8]} 22... exd4
{[%clk 0:01:30.9]} 23. Qb3 {[%clk 0:01:49.9]} 23... Rc7 {[%clk 0:01:30.3]} 24.
Rfe1 {[%clk 0:01:49.9]} 24... Rfc8 {[%clk 0:01:30.1]} 25. Re2 {[%clk 0:01:49.8]}
25... Rc3 {[%clk 0:01:29.2]} 26. Qa2 {[%clk 0:01:48.8]} 26... R8c7 {[%clk
0:01:29]} 27. Rbe1 {[%clk 0:01:49.1]} 27... Qd6 {[%clk 0:01:21.5]} 28. b5 {[%clk
0:01:45.9]} 28... Qc5 {[%clk 0:01:13.5]} 29. Kg1 {[%clk 0:01:40.2]} 29... h5
{[%clk 0:01:09]} 30. Re5 {[%clk 0:01:31.9]} 30... Qd6 {[%clk 0:00:57.3]} 31.
R5e2 {[%clk 0:01:25.4]} 31... h4 {[%clk 0:00:55.3]} 32. g4 {[%clk 0:01:25.5]}
32... Qb4 {[%clk 0:00:46.8]} 33. Kf1 {[%clk 0:00:53.9]} 33... Qa3 {[%clk
0:00:21.8]} 34. Qd5 {[%clk 0:00:51.7]} 34... Qc5 {[%clk 0:00:21.5]} 35. Qa2
{[%clk 0:00:50.7]} 35... Rxc2 {[%clk 0:00:19.7]} 36. Rxc2 {[%clk 0:00:43.1]}
36... Qxc2 {[%clk 0:00:20.6]} 37. Qd5 {[%clk 0:00:41.1]} 37... Qxd3+ {[%clk
0:00:19.5]} 38. Kg1 {[%clk 0:00:41.7]} 38... Rc5 {[%clk 0:00:14.9]} 39. Qd7
{[%clk 0:00:38.7]} 39... Qxh3 {[%clk 0:00:11.9]} 40. Qxd4+ {[%clk 0:00:37.9]}
40... Kh7 {[%clk 0:00:10.1]} 41. Qf4 {[%clk 0:00:34]} 41... Qb3 {[%clk
0:00:08.4]} 42. Re7 {[%clk 0:00:26.8]} 42... Kg7 {[%clk 0:00:05.7]} 43. Qd4+
{[%clk 0:00:24.2]} 43... Kh7 {[%clk 0:00:05.8]} 44. Qf4 {[%clk 0:00:24]} 44...
Kg7 {[%clk 0:00:02.7]} 45. Qd4+ {[%clk 0:00:24.1]} 45... Kh7 {[%clk 0:00:03.3]}
46. Re8 {[%clk 0:00:20.8]} 46... Rc1+ {[%clk 0:00:03.3]} 47. Kh2 {[%clk
0:00:20.6]} 47... Rh1+ {[%clk 0:00:02.9]} 48. Kxh1 {[%clk 0:00:20.7]} 48... Qb1+
{[%clk 0:00:01.9]} 49. Kh2 {[%clk 0:00:20.5]} 1-0

[Event "Late-Titled-Tuesday-Blitz-March-12-2024"]
[Site "Chess.com"]
[Date "2024.03.12"]
[Round "5"]
[White "AlexandreHouhou"]
[Black "guillembaches"]
[Result "1/2-1/2"]
[WhiteElo "2336"]
[BlackElo "2545"]
[TimeControl "180+1"]
[EndTime "14:54:39 PDT"]
[Termination "Game drawn by repetition"]

1. e4 {[%clk 0:03:00.9]} 1... c5 {[%clk 0:02:59.8]} 2. Nf3 {[%clk 0:03:00.6]}
2... d6 {[%clk 0:03:00.4]} 3. d4 {[%clk 0:02:59.3]} 3... cxd4 {[%clk 0:03:01.3]}
4. Nxd4 {[%clk 0:02:59.5]} 4... Nf6 {[%clk 0:03:01.9]} 5. Nc3 {[%clk 0:02:59.8]}
5... Nc6 {[%clk 0:03:02.5]} 6. Bg5 {[%clk 0:02:49.1]} 6... e6 {[%clk 0:03:02.6]}
7. Bb5 {[%clk 0:02:48.9]} 7... Bd7 {[%clk 0:03:02]} 8. O-O {[%clk 0:02:45]} 8...
Be7 {[%clk 0:02:59.5]} 9. Re1 {[%clk 0:02:36]} 9... h6 {[%clk 0:02:50.4]} 10.
Bh4 {[%clk 0:02:27.9]} 10... Qc7 {[%clk 0:02:48.4]} 11. Bg3 {[%clk 0:02:22.9]}
11... Ne5 {[%clk 0:02:24.8]} 12. Bxd7+ {[%clk 0:02:22.4]} 12... Nfxd7 {[%clk
0:02:20.3]} 13. Ndb5 {[%clk 0:02:07.2]} 13... Qb6 {[%clk 0:02:15.8]} 14. Qd4
{[%clk 0:01:59.3]} 14... Qxd4 {[%clk 0:02:03.4]} 15. Nxd4 {[%clk 0:02:00.2]}
15... a6 {[%clk 0:01:58]} 16. Nce2 {[%clk 0:01:39.6]} 16... Rc8 {[%clk
0:01:51.3]} 17. c3 {[%clk 0:01:38]} 17... Nc5 {[%clk 0:01:46.1]} 18. Bxe5 {[%clk
0:01:22.7]} 18... dxe5 {[%clk 0:01:43.8]} 19. Nf3 {[%clk 0:01:22.9]} 19... f6
{[%clk 0:01:32.8]} 20. Nc1 {[%clk 0:01:18]} 20... Kf7 {[%clk 0:01:27.1]} 21. Nb3
{[%clk 0:01:16]} 21... Nd3 {[%clk 0:01:22.2]} 22. Re2 {[%clk 0:01:12.7]} 22...
Rhd8 {[%clk 0:01:19.5]} 23. Rd2 {[%clk 0:00:52.5]} 23... g5 {[%clk 0:01:18.1]}
24. Ne1 {[%clk 0:00:44.5]} 24... Nxe1 {[%clk 0:01:05]} 25. Rxe1 {[%clk
0:00:41.5]} 25... f5 {[%clk 0:01:05]} 26. exf5 {[%clk 0:00:37.3]} 26... exf5
{[%clk 0:01:01.6]} 27. Rxe5 {[%clk 0:00:37.4]} 27... Rxd2 {[%clk 0:00:55.7]} 28.
Nxd2 {[%clk 0:00:38.3]} 28... Rd8 {[%clk 0:00:54.9]} 29. Re2 {[%clk 0:00:32.5]}
29... Bc5 {[%clk 0:00:51.1]} 30. Kf1 {[%clk 0:00:31]} 30... Kf6 {[%clk
0:00:50.5]} 31. Nf3 {[%clk 0:00:22.2]} 31... g4 {[%clk 0:00:46.7]} 32. Rd2
{[%clk 0:00:20.4]} 32... Re8 {[%clk 0:00:37.8]} 33. Nd4 {[%clk 0:00:20.3]} 33...
h5 {[%clk 0:00:34.5]} 34. Ne2 {[%clk 0:00:18.8]} 34... Kg5 {[%clk 0:00:31.9]}
35. g3 {[%clk 0:00:18.7]} 35... h4 {[%clk 0:00:31.1]} 36. gxh4+ {[%clk
0:00:16.8]} 36... Kxh4 {[%clk 0:00:30.1]} 37. Rd7 {[%clk 0:00:16.6]} 37... b6
{[%clk 0:00:26.8]} 38. Ng3 {[%clk 0:00:13.9]} 38... f4 {[%clk 0:00:21.5]} 39.
Nf5+ {[%clk 0:00:14.3]} 39... Kg5 {[%clk 0:00:21.3]} 40. Nd4 {[%clk 0:00:13.2]}
40... f3 {[%clk 0:00:13.4]} 41. Rg7+ {[%clk 0:00:13]} 41... Kf4 {[%clk
0:00:11.4]} 42. Rf7+ {[%clk 0:00:12.3]} 42... Kg5 {[%clk 0:00:11.7]} 43. Rf5+
{[%clk 0:00:10.6]} 43... Kg6 {[%clk 0:00:11.5]} 44. Rf4 {[%clk 0:00:09.8]} 44...
Bxd4 {[%clk 0:00:10.9]} 45. Rxg4+ {[%clk 0:00:08.9]} 45... Kf5 {[%clk
0:00:11.2]} 46. Rxd4 {[%clk 0:00:08.5]} 46... Re2 {[%clk 0:00:11.5]} 47. Rd3
{[%clk 0:00:05]} 47... Kf4 {[%clk 0:00:11.3]} 48. Rd4+ {[%clk 0:00:05]} 48...
Kf5 {[%clk 0:00:11.3]} 49. Rd3 {[%clk 0:00:04.6]} 49... Kf4 {[%clk 0:00:11.6]}
50. Rd4+ {[%clk 0:00:05]} 50... Kf5 {[%clk 0:00:11.9]} 1/2-1/2

[Event "Late-Titled-Tuesday-Blitz-March-12-2024"]
[Site "Chess.com"]
[Date "2024.03.12"]
[Round "5"]
[White "IMSlavin"]
[Black "kinga2008"]
[Result "1-0"]
[WhiteElo "2296"]
[BlackElo "2437"]
[TimeControl "180+1"]
[EndTime "14:54:39 PDT"]
[Termination "IMSlavin won on time"]

1. e4 {[%clk 0:02:59.4]} 1... c5 {[%clk 0:02:56.3]} 2. g3 {[%clk 0:02:59.1]}
2... Nc6 {[%clk 0:02:56.6]} 3. Bg2 {[%clk 0:02:58.9]} 3... g6 {[%clk 0:02:57.2]}
4. Ne2 {[%clk 0:02:59.2]} 4... Bg7 {[%clk 0:02:57.1]} 5. O-O {[%clk 0:02:59.5]}
5... e6 {[%clk 0:02:58]} 6. Nbc3 {[%clk 0:02:59.8]} 6... Nge7 {[%clk 0:02:58.1]}
7. a3 {[%clk 0:02:59.8]} 7... d5 {[%clk 0:02:58.2]} 8. exd5 {[%clk 0:02:59.4]}
8... exd5 {[%clk 0:02:59.1]} 9. Rb1 {[%clk 0:02:55.5]} 9... O-O {[%clk
0:02:58.9]} 10. b4 {[%clk 0:02:55.4]} 10... cxb4 {[%clk 0:02:44.5]} 11. axb4
{[%clk 0:02:55.2]} 11... Bg4 {[%clk 0:02:42.3]} 12. h3 {[%clk 0:02:53.7]} 12...
Be6 {[%clk 0:02:41.2]} 13. Nf4 {[%clk 0:02:50.1]} 13... Qd7 {[%clk 0:02:40.9]}
14. Nxe6 {[%clk 0:02:33.9]} 14... fxe6 {[%clk 0:02:41.8]} 15. Ne2 {[%clk
0:02:25.3]} 15... Rac8 {[%clk 0:02:39.3]} 16. c3 {[%clk 0:02:23.9]} 16... Ne5
{[%clk 0:02:22.8]} 17. d4 {[%clk 0:02:11.3]} 17... Nc4 {[%clk 0:02:10.8]} 18.
Nf4 {[%clk 0:01:58.2]} 18... Nf5 {[%clk 0:02:01.1]} 19. Re1 {[%clk 0:01:57.3]}
19... Rfe8 {[%clk 0:01:54.7]} 20. Qg4 {[%clk 0:01:27.3]} 20... Nb6 {[%clk
0:01:33]} 21. Bd2 {[%clk 0:01:23.4]} 21... Nc4 {[%clk 0:01:29]} 22. Bc1 {[%clk
0:01:21.2]} 22... Ncd6 {[%clk 0:01:27.4]} 23. Bb2 {[%clk 0:00:57.3]} 23... Nb5
{[%clk 0:01:23]} 24. Rxe6 {[%clk 0:00:46.1]} 24... Rxe6 {[%clk 0:01:09.8]} 25.
Bxd5 {[%clk 0:00:45.8]} 25... Nc7 {[%clk 0:01:09.5]} 26. Bb3 {[%clk 0:00:38.9]}
26... Kh8 {[%clk 0:01:01.1]} 27. Nxe6 {[%clk 0:00:37.5]} 27... Nxe6 {[%clk
0:00:58.6]} 28. Re1 {[%clk 0:00:37.2]} 28... Nc7 {[%clk 0:00:50.1]} 29. h4
{[%clk 0:00:32.5]} 29... Nd5 {[%clk 0:00:48.3]} 30. h5 {[%clk 0:00:31.4]} 30...
Nf6 {[%clk 0:00:38.2]} 31. Qe2 {[%clk 0:00:16.9]} 31... Re8 {[%clk 0:00:32.5]}
32. Qd1 {[%clk 0:00:14.1]} 32... Rxe1+ {[%clk 0:00:29.9]} 33. Qxe1 {[%clk
0:00:14.6]} 33... Nxh5 {[%clk 0:00:26.6]} 34. Be6 {[%clk 0:00:12.3]} 34... Qe7
{[%clk 0:00:17.3]} 35. d5 {[%clk 0:00:12.2]} 35... Nd6 {[%clk 0:00:14.2]} 36.
Qe3 {[%clk 0:00:09.1]} 36... Nc4 {[%clk 0:00:11.8]} 37. Qc1 {[%clk 0:00:09.2]}
37... Nxb2 {[%clk 0:00:11.9]} 38. Qxb2 {[%clk 0:00:09.5]} 38... Nf6 {[%clk
0:00:11.5]} 39. Qa2 {[%clk 0:00:07.1]} 39... a6 {[%clk 0:00:08.9]} 40. c4 {[%clk
0:00:07.1]} 40... Qxb4 {[%clk 0:00:03.5]} 41. Qe2 {[%clk 0:00:05.3]} 1-0

[Event "Late-Titled-Tuesday-Blitz-March-12-2024"]
[Site "Chess.com"]
[Date "2024.03.12"]
[Round "5"]
[White "buenamor1972"]
[Black "zverr1"]
[Result "0-1"]
[WhiteElo "2369"]
[BlackElo "2573"]
[TimeControl "180+1"]
[EndTime "14:54:40 PDT"]
[Termination "zverr1 won by checkmate"]

1. d4 {[%clk 0:02:59.2]} 1... Nf6 {[%clk 0:02:59.6]} 2. c4 {[%clk 0:02:59.2]}
2... g6 {[%clk 0:02:57.8]} 3. Nc3 {[%clk 0:02:58.8]} 3... d5 {[%clk 0:02:44.7]}
4. Nf3 {[%clk 0:02:57.2]} 4... Bg7 {[%clk 0:02:43.8]} 5. Bg5 {[%clk 0:02:57.2]}
5... Ne4 {[%clk 0:02:40.8]} 6. Bf4 {[%clk 0:02:55.4]} 6... Nxc3 {[%clk
0:02:40.3]} 7. bxc3 {[%clk 0:02:56.3]} 7... c6 {[%clk 0:02:40.9]} 8. e3 {[%clk
0:02:49]} 8... O-O {[%clk 0:02:40.9]} 9. Be2 {[%clk 0:02:20.1]} 9... Qa5 {[%clk
0:02:39.4]} 10. Qb3 {[%clk 0:02:15.4]} 10... Nd7 {[%clk 0:02:26.4]} 11. O-O
{[%clk 0:02:10.2]} 11... Re8 {[%clk 0:02:22.2]} 12. cxd5 {[%clk 0:02:02.3]}
12... cxd5 {[%clk 0:02:20.7]} 13. c4 {[%clk 0:01:59]} 13... dxc4 {[%clk
0:01:41.6]} 14. Bxc4 {[%clk 0:01:57.1]} 14... e6 {[%clk 0:01:42]} 15. Rac1
{[%clk 0:01:56.9]} 15... Nb6 {[%clk 0:01:38.4]} 16. Bb5 {[%clk 0:01:54.5]} 16...
Bd7 {[%clk 0:01:19.7]} 17. Bxd7 {[%clk 0:01:48.8]} 17... Nxd7 {[%clk 0:01:20.6]}
18. Qxb7 {[%clk 0:01:45.4]} 18... e5 {[%clk 0:01:20.8]} 19. Qxd7 {[%clk
0:01:34.8]} 19... exf4 {[%clk 0:01:18.6]} 20. exf4 {[%clk 0:01:33.1]} 20... Red8
{[%clk 0:01:12.6]} 21. Qb7 {[%clk 0:01:26.8]} 21... Qxa2 {[%clk 0:00:59.1]} 22.
Rc7 {[%clk 0:01:21.1]} 22... Qd5 {[%clk 0:00:51.5]} 23. Rb1 {[%clk 0:01:08.6]}
23... Bxd4 {[%clk 0:00:38.6]} 24. Qxd5 {[%clk 0:00:59.4]} 24... Rxd5 {[%clk
0:00:39.5]} 25. g3 {[%clk 0:00:45.7]} 25... Bb6 {[%clk 0:00:31.5]} 26. Rb7
{[%clk 0:00:44.4]} 26... Rc8 {[%clk 0:00:20.8]} 27. Rb2 {[%clk 0:00:37.7]} 27...
f6 {[%clk 0:00:09.4]} 28. Re2 {[%clk 0:00:35.8]} 28... Rc7 {[%clk 0:00:07.5]}
29. Rb8+ {[%clk 0:00:21.2]} 29... Kf7 {[%clk 0:00:07.2]} 30. Ree8 {[%clk
0:00:21.5]} 30... Rc2 {[%clk 0:00:03.7]} 31. Rf8+ {[%clk 0:00:19.6]} 31... Kg7
{[%clk 0:00:03.4]} 32. Rg8+ {[%clk 0:00:19.1]} 32... Kh6 {[%clk 0:00:03.4]} 33.
Rxb6 {[%clk 0:00:12.6]} 33... axb6 {[%clk 0:00:03.2]} 34. g4 {[%clk 0:00:12.7]}
34... Rc4 {[%clk 0:00:01.8]} 35. g5+ {[%clk 0:00:11.9]} 35... fxg5 {[%clk
0:00:01.6]} 36. fxg5+ {[%clk 0:00:12.4]} 36... Kh5 {[%clk 0:00:02.3]} 37. h3
{[%clk 0:00:12.2]} 37... Rf4 {[%clk 0:00:01.5]} 38. Kg2 {[%clk 0:00:12.1]} 38...
Rdf5 {[%clk 0:00:01.3]} 39. Rh8 {[%clk 0:00:11.8]} 39... Rxf3 {[%clk 0:00:01.6]}
40. Rxh7+ {[%clk 0:00:12]} 40... Kxg5 {[%clk 0:00:02.3]} 41. h4+ {[%clk
0:00:10.9]} 41... Kf6 {[%clk 0:00:02.9]} 42. Rb7 {[%clk 0:00:11.1]} 42... Rb3
{[%clk 0:00:03.6]} 43. f3 {[%clk 0:00:10.4]} 43... Rfxf3 {[%clk 0:00:02.8]} 44.
Kh2 {[%clk 0:00:11]} 44... Rf2+ {[%clk 0:00:02.2]} 45. Kg1 {[%clk 0:00:10.9]}
45... Ra2 {[%clk 0:00:03.1]} 46. Rd7 {[%clk 0:00:10.5]} 46... Rb1+ {[%clk
0:00:03.3]} 47. Rd1 {[%clk 0:00:11.4]} 47... Rxd1# {[%clk 0:00:04.2]} 0-1